fUSD/lending_fUSD_20260518
["ID","MTS","AMOUNT","RATE_DAILY","PERIOD"]
[422572626,1779108639000,-506.53738195,0.00025456,2]
[422572636,1779108639000,-35891.09993732,0.00025457,2]
[422572635,1779108639000,-500.0,0.00025456,2]
[422572633,1779108639000,-500.0,0.00025456,2]
[422572634,1779108639000,-500.0,0.00025456,2]
[422572637,1779108639000,-18094.06120652,0.00025457,2]
[422572629,1779108639000,-500.0,0.00025456,2]
[422572624,1779108639000,-500.0,0.00025456,2]
[422572631,1779108639000,-500.0,0.00025456,2]
[422572630,1779108639000,-500.0,0.00025456,2]
[422572632,1779108639000,-500.0,0.00025456,2]
[422572699,1779108650000,-1143.80000001,0.00025457,2]
[422572698,1779108650000,-5000.01,0.00025457,2]
[422572701,1779108650000,-1362.87164236,0.00025457,2]
[422572702,1779108650000,-320.04378153,0.00025457,2]
[422572703,1779108650000,-45396.18212552,0.00025457,2]
[422572704,1779108650000,-1843.68905089,0.00025457,2]
[422572705,1779108650000,-1994.62773167,0.00025457,2]
[422572700,1779108650000,-400.96,0.00025457,2]
[422572707,1779108650000,-502.0,0.000241,2]
[422572711,1779108650000,-1148.33014577,0.00025457,2]
[422572710,1779108650000,-1031.29474607,0.00025457,2]
[422572708,1779108650000,-502.0,0.00024695,2]
[422572709,1779108650000,-502.0,0.00025289,3]
[422572712,1779108650000,-6510.52819618,0.00025457,2]
[422572716,1779108650000,-2922.3835976,0.00025457,2]
[422572706,1779108650000,-185483.90543837,0.00025457,2]
[422572714,1779108650000,-435.30302634,0.00025457,2]
[422572733,1779108651000,-166.91459044,0.00025744,2]
[422572734,1779108651000,-500.0,0.00025744,2]
[422572732,1779108651000,-497.75847978,0.00025739,2]
[422572735,1779108651000,-198.4052372,0.00025744,2]
[422572736,1779108651000,-500.0,0.00025744,2]
[422572742,1779108651000,-224.98,0.00025745,2]
[422572743,1779108651000,-1089.69,0.00025745,2]
[422572740,1779108651000,-385.1849861,0.00025744,2]
[422572739,1779108651000,-500.0,0.00025744,2]
[422572741,1779108651000,-1114.79,0.00025745,2]
[422572729,1779108651000,-20023.45858905,0.00025676,2]
[422572737,1779108651000,-305.90945692,0.00025744,2]
[422572726,1779108651000,-150.0,0.00025631,4]
[422572720,1779108651000,-150.0,0.00025511,4]
[422572728,1779108651000,-150.0,0.00025667,4]
[422572730,1779108651000,-150.0,0.00025677,4]
[422572725,1779108651000,-150.0,0.00025617,4]
[422572727,1779108651000,-166.66,0.00025657,2]
[422572723,1779108651000,-153.88,0.00025571,2]
[422572724,1779108651000,-850.20075818,0.00025602,2]
[422572722,1779108651000,-150.0,0.00025557,4]
[422572721,1779108651000,-150.0,0.00025511,4]
[422572718,1779108651000,-291.0,0.00025457,10]
[422572719,1779108651000,-150.0,0.00025498,4]
[422572717,1779108651000,-23805.15247385,0.00025457,2]
[422572745,1779108651000,-270.84,0.00025745,2]
[422572731,1779108651000,-150.0,0.00025736,4]
[422572744,1779108651000,-378.64,0.00025745,2]
[422572738,1779108651000,-500.0,0.00025744,2]
[422572748,1779108651000,-159.0,0.0002575,2]
[422572774,1779108651000,-1089.69,0.0002583,2]
[422572747,1779108651000,-379.33,0.00025745,2]
[422572772,1779108651000,-1114.79,0.0002583,2]
[422572771,1779108651000,-150.0,0.00025822,4]
[422572769,1779108651000,-379.33,0.00025802,2]
[422572770,1779108651000,-150.0,0.00025822,4]
[422572768,1779108651000,-225.75,0.00025802,2]
[422572767,1779108651000,-270.84,0.00025802,30]
[422572765,1779108651000,-1089.69,0.00025802,2]
[422572766,1779108651000,-378.64,0.00025802,2]
[422572763,1779108651000,-1114.79,0.00025802,2]
[422572762,1779108651000,-150.0,0.00025796,4]
[422572761,1779108651000,-799.8,0.00025786,2]
[422572760,1779108651000,-551.78,0.00025786,2]
[422572773,1779108651000,-224.98,0.0002583,2]
[422572759,1779108651000,-500.0,0.00025785,2]
[422572764,1779108651000,-224.98,0.00025802,2]
[422572746,1779108651000,-225.75,0.00025745,2]
[422572750,1779108651000,-1114.79,0.00025773,7]
[422572752,1779108651000,-1089.69,0.00025773,7]
[422572753,1779108651000,-378.64,0.00025773,7]
[422572751,1779108651000,-224.98,0.00025773,7]
[422572755,1779108651000,-225.75,0.00025773,7]
[422572757,1779108651000,-500.0,0.00025785,2]
[422572756,1779108651000,-379.33,0.00025773,7]
[422572754,1779108651000,-270.84,0.00025773,7]
[422572758,1779108651000,-500.0,0.00025785,2]
[422572749,1779108651000,-158.0,0.00025751,2]
[422572790,1779108652000,-224.98,0.00025887,7]
[422572783,1779108652000,-1089.69,0.00025859,7]
[422572794,1779108652000,-225.75,0.00025887,7]
[422572795,1779108652000,-379.33,0.00025887,7]
[422572791,1779108652000,-1089.69,0.00025887,7]
[422572788,1779108652000,-502.0,0.00025884,3]
[422572785,1779108652000,-270.84,0.00025859,7]
[422572792,1779108652000,-378.64,0.00025887,7]
[422572780,1779108652000,-150.0,0.00025855,4]
[422572784,1779108652000,-378.64,0.00025859,7]
[422572782,1779108652000,-224.98,0.00025859,7]
[422572781,1779108652000,-1114.79,0.00025859,7]
[422572778,1779108652000,-379.33,0.0002583,2]
[422572779,1779108652000,-150.0,0.00025846,4]
[422572777,1779108652000,-225.75,0.0002583,2]
[422572776,1779108652000,-270.84,0.0002583,2]
[422572789,1779108652000,-1114.79,0.00025887,7]
[422572775,1779108652000,-378.64,0.0002583,2]
[422572786,1779108652000,-225.75,0.00025859,7]
[422572793,1779108652000,-270.84,0.00025887,30]
[422572811,1779108652000,-378.64,0.00025944,7]
[422572798,1779108652000,-2215.0,0.000259,5]
[422572815,1779108652000,-2402.22264297,0.00025954,2]
[422572816,1779108652000,-3222.8993,0.00025954,2]
[422572817,1779108652000,-1846.9597263,0.00025954,2]
[422572813,1779108652000,-225.75,0.00025944,7]
[422572814,1779108652000,-379.33,0.00025944,7]
[422572812,1779108652000,-270.84,0.00025944,7]
[422572810,1779108652000,-1089.69,0.00025944,7]
[422572809,1779108652000,-224.98,0.00025944,7]
[422572796,1779108652000,-850.20075818,0.00025889,2]
[422572808,1779108652000,-1114.79,0.00025944,7]
[422572805,1779108652000,-225.75,0.00025916,2]
[422572804,1779108652000,-270.84,0.00025916,2]
[422572801,1779108652000,-224.98,0.00025916,2]
[422572802,1779108652000,-1089.69,0.00025916,2]
[422572803,1779108652000,-378.64,0.00025916,2]
[422572806,1779108652000,-379.33,0.00025916,2]
[422572799,1779108652000,-150.0,0.00025915,4]
[422572800,1779108652000,-1114.79,0.00025916,2]
[422572797,1779108652000,-531.08257441,0.00025893,2]
[422572807,1779108652000,-270.54,0.00025944,7]
[422572787,1779108652000,-379.33,0.00025859,7]
[422572818,1779108663000,-152.0,0.00022889,7]
[422572820,1779108815000,1000.0,0.00027,120]
[422572825,1779109299000,159.0,0.000271,120]
[422572826,1779109746000,156.0,0.000271,120]
[422572847,1779109832000,-150.0,0.00013511,2]
[422572852,1779109832000,-150.0,0.00013581,2]
[422572854,1779109832000,-150.0,0.00013605,2]
[422572853,1779109832000,-150.0,0.00013603,2]
[422572855,1779109832000,-150.0,0.00013628,2]
[422572851,1779109832000,-150.0,0.00013581,2]
[422572857,1779109832000,-159.97,0.00013642,2]
[422572858,1779109832000,-150.0,0.00013652,2]
[422572860,1779109832000,-150.0,0.00013675,2]
[422572859,1779109832000,-150.0,0.00013654,2]
[422572862,1779109832000,-150.0,0.00013698,2]
[422572861,1779109832000,-150.0,0.00013675,2]
[422572863,1779109832000,-166.66,0.00013699,2]
[422572856,1779109832000,-150.0,0.00013638,2]
[422572864,1779109832000,-150.0,0.00013702,2]
[422572849,1779109832000,-150.0,0.00013558,2]
[422572846,1779109832000,-150.0,0.00013488,2]
[422572832,1779109832000,-159.97,0.00012547,2]
[422572833,1779109832000,-241.79,0.00013108,2]
[422572835,1779109832000,-216.482437,0.00013344,2]
[422572834,1779109832000,-389.82,0.00013157,2]
[422572837,1779109832000,-1200.0,0.00013487,2]
[422572838,1779109832000,-150.0,0.00013488,2]
[422572848,1779109832000,-150.0,0.00013535,2]
[422572843,1779109832000,-150.0,0.00013488,2]
[422572836,1779109832000,-300.0,0.00013487,2]
[422572840,1779109832000,-150.0,0.00013488,2]
[422572841,1779109832000,-150.0,0.00013488,2]
[422572839,1779109832000,-150.0,0.00013488,2]
[422572845,1779109832000,-150.0,0.00013488,2]
[422572844,1779109832000,-150.0,0.00013488,2]
[422572842,1779109832000,-150.0,0.00013488,2]
[422572866,1779109832000,-150.0,0.00013722,2]
[422572850,1779109832000,-150.0,0.00013571,2]
[422572867,1779109832000,-150.0,0.00013737,2]
[422572886,1779109832000,-150.0,0.00013886,2]
[422572887,1779109832000,-150.0,0.00013904,2]
[422572900,1779109832000,-150.0,0.00013937,2]
[422572899,1779109832000,-150.0,0.00013933,2]
[422572891,1779109832000,-150.0,0.00013909,2]
[422572905,1779109832000,-150.0,0.00013949,2]
[422572885,1779109832000,-500.0,0.0001388,2]
[422572910,1779109832000,-150.0,0.00013956,2]
[422572912,1779109832000,-166.66,0.00013973,2]
[422572914,1779109832000,-150.0,0.00013979,2]
[422572915,1779109832000,-150.0,0.00013987,2]
[422572865,1779109832000,-150.0,0.00013718,2]
[422572917,1779109832000,-150.0,0.00014003,2]
[422572918,1779109832000,-150.0,0.00014026,2]
[422572908,1779109832000,-150.0,0.00013956,2]
[422572894,1779109832000,-150.0,0.00013916,2]
[422572916,1779109832000,-1500.0,0.00014,2]
[422572884,1779109832000,-44706.8639,0.0001388,2]
[422572881,1779109832000,-150.0,0.00013862,2]
[422572869,1779109832000,-150.0,0.00013745,2]
[422572870,1779109832000,-150.0,0.00013769,2]
[422572872,1779109832000,-150.0,0.00013787,2]
[422572873,1779109832000,-150.0,0.00013787,2]
[422572871,1779109832000,-150.0,0.00013769,2]
[422572868,1779109832000,-150.0,0.00013737,2]
[422572874,1779109832000,-150.0,0.00013792,2]
[422572876,1779109832000,-150.0,0.00013815,2]
[422572877,1779109832000,-150.0,0.00013821,2]
[422572879,1779109832000,-166.66,0.00013836,2]
[422572878,1779109832000,-150.0,0.00013834,2]
[422572880,1779109832000,-150.0,0.00013839,2]
[422572882,1779109832000,-150.0,0.00013862,2]
[422572875,1779109832000,-295.85578337,0.00013801,2]
[422572883,1779109832000,-1200.0,0.00013879,2]
[422572959,1779109833000,-150.0,0.00014331,2]
[422572957,1779109833000,-150.0,0.0001432,2]
[422572958,1779109833000,-150.0,0.00014331,2]
[422572956,1779109833000,-150.0,0.00014307,2]
[422572951,1779109833000,-150.0,0.0001426,2]
[422572953,1779109833000,-150.0,0.00014284,2]
[422572952,1779109833000,-272.484233,0.00014281,2]
[422572955,1779109833000,-8000.0,0.000143,5]
[422572950,1779109833000,-166.66,0.00014247,2]
[422572949,1779109833000,-150.0,0.00014237,2]
[422572960,1779109833000,-150.0,0.00014344,2]
[422572954,1779109833000,-150.0,0.00014295,2]
[422572962,1779109833000,-150.0,0.00014377,2]
[422572972,1779109833000,-150.0,0.00014448,2]
[422572963,1779109833000,-166.66,0.00014384,2]
[422572965,1779109833000,-150.0,0.00014387,2]
[422572964,1779109833000,-150.0,0.00014387,2]
[422572966,1779109833000,-10700.0,0.000144,5]
[422572970,1779109833000,-150.0,0.00014424,2]
[422572969,1779109833000,-150.0,0.0001441,2]
[422572968,1779109833000,-150.0,0.00014404,2]
[422572967,1779109833000,-150.0,0.00014401,2]
[422572948,1779109833000,-150.0,0.00014237,2]
[422572971,1779109833000,-150.0,0.00014424,2]
[422572973,1779109833000,-150.0,0.00014471,2]
[422572974,1779109833000,-150.0,0.00014487,2]
[422572961,1779109833000,-150.0,0.00014354,2]
[422572943,1779109833000,-166.776994,0.0001421,2]
[422572985,1779109833000,-150.0,0.00014588,2]
[422572940,1779109833000,-176.794762,0.0001421,2]
[422572921,1779109833000,-150.0,0.00014064,2]
[422572920,1779109833000,-150.0,0.0001405,2]
[422572922,1779109833000,-150.0,0.0001407,2]
[422572924,1779109833000,-150.0,0.00014087,2]
[422572923,1779109833000,-150.0,0.00014073,2]
[422572925,1779109833000,-150.0,0.00014087,2]
[422572926,1779109833000,-150.0,0.00014096,2]
[422572927,1779109833000,-2600.0,0.000141,5]
[422572929,1779109833000,-150.0,0.0001412,2]
[422572928,1779109833000,-166.66,0.0001411,2]
[422572930,1779109833000,-150.0,0.0001413,2]
[422572931,1779109833000,-150.0,0.00014143,2]
[422572947,1779109833000,-150.0,0.00014237,2]
[422572933,1779109833000,-150.0,0.00014154,2]
[422572932,1779109833000,-150.0,0.00014143,2]
[422572935,1779109833000,-150.0,0.00014167,2]
[422572936,1779109833000,-150.0,0.00014179,2]
[422572937,1779109833000,-150.0,0.0001419,2]
[422572919,1779109833000,-150.0,0.0001405,2]
[422572939,1779109833000,-392.730292,0.0001421,2]
[422572938,1779109833000,-5300.0,0.000142,5]
[422572944,1779109833000,-227.899497,0.0001421,2]
[422572946,1779109833000,-150.0,0.00014237,2]
[422572945,1779109833000,-150.0,0.00014214,2]
[422572941,1779109833000,-211.381708,0.0001421,2]
[422572942,1779109833000,-170.394402,0.0001421,2]
[422572934,1779109833000,-500.0,0.00014154,2]
[422572975,1779109833000,-150.0,0.00014495,2]
[422573020,1779109833000,-255.0,0.0001485,2]
[422572979,1779109833000,-150.0,0.00014525,2]
[422573010,1779109833000,-1229.54163438,0.000148,2]
[422573011,1779109833000,-2600.0,0.000148,5]
[422573012,1779109833000,-1229.54163433,0.00014814,2]
[422573013,1779109833000,-150.0,0.0001482,2]
[422573014,1779109833000,-150.0,0.00014822,2]
[422573015,1779109833000,-1229.54163433,0.00014829,2]
[422573017,1779109833000,-150.0,0.00014836,2]
[422573022,1779109833000,-150.0,0.00014869,2]
[422573016,1779109833000,-1680.0,0.00014835,2]
[422573019,1779109833000,-150.0,0.00014846,2]
[422573023,1779109833000,-150.0,0.00014871,2]
[422573018,1779109833000,-1229.54163433,0.00014843,2]
[422573008,1779109833000,-150.0,0.00014799,2]
[422573021,1779109833000,-1229.54163433,0.00014857,2]
[422573025,1779109833000,-150.0,0.00014893,2]
[422573027,1779109833000,-208.32800392,0.000149,2]
[422573028,1779109833000,-25000.0,0.000149,3]
[422573026,1779109833000,-500.0,0.00014899,2]
[422573030,1779109833000,-8049.66206914,0.000149,2]
[422573032,1779109833000,-40012.36361792,0.000149,2]
[422573034,1779109833000,-1108.61757386,0.000149,2]
[422573029,1779109833000,-533.06457729,0.000149,2]
[422573033,1779109833000,-443.39958113,0.000149,2]
[422573035,1779109833000,-1497.87666791,0.000149,2]
[422573036,1779109833000,-758.70395769,0.000149,2]
[422572976,1779109833000,-13400.0,0.000145,5]
[422573024,1779109833000,-150.0,0.00014893,2]
[422573005,1779109833000,-150.0,0.00014772,2]
[422573031,1779109833000,-651.4767907,0.000149,2]
[422573003,1779109833000,-150.0,0.00014752,2]
[422572977,1779109833000,-150.0,0.00014518,2]
[422573004,1779109833000,-150.0,0.00014756,2]
[422572984,1779109833000,-150.0,0.0001457,2]
[422572978,1779109833000,-150.0,0.00014518,2]
[422572980,1779109833000,-150.0,0.00014537,2]
[422572981,1779109833000,-150.0,0.00014541,2]
[422572982,1779109833000,-150.0,0.00014558,2]
[422572986,1779109833000,-803.62443768,0.000146,5]
[422572987,1779109833000,-1796.37556232,0.000146,5]
[422572988,1779109833000,-150.0,0.00014612,2]
[422572989,1779109833000,-150.0,0.00014612,2]
[422572992,1779109833000,-150.0,0.00014653,2]
[422572991,1779109833000,-150.0,0.0001464,2]
[422572983,1779109833000,-150.0,0.00014565,2]
[422572996,1779109833000,-150.0,0.00014687,2]
[422572993,1779109833000,-150.0,0.00014658,2]
[422573009,1779109833000,-150.0,0.00014799,2]
[422573002,1779109833000,-159.97,0.00014738,2]
[422573001,1779109833000,-150.0,0.00014737,2]
[422573007,1779109833000,-152.0,0.00014783,2]
[422573000,1779109833000,-150.0,0.00014729,2]
[422573006,1779109833000,-150.0,0.00014776,2]
[422572998,1779109833000,-150.0,0.00014705,2]
[422572995,1779109833000,-150.0,0.00014687,2]
[422572997,1779109833000,-2600.0,0.000147,5]
[422572990,1779109833000,-150.0,0.00014635,2]
[422572994,1779109833000,-150.0,0.00014682,2]
[422572999,1779109833000,-150.0,0.00014705,2]
[422573064,1779109838000,-290.88615179,0.00014908,2]
[422573057,1779109838000,-25000.0,0.000149,3]
[422573062,1779109838000,-208.32800392,0.00014904,2]
[422573058,1779109838000,-208.32800392,0.00014902,2]
[422573053,1779109838000,-3753.78646002,0.000149,2]
[422573060,1779109838000,-150.0,0.00014903,2]
[422573056,1779109838000,-667.17168438,0.000149,2]
[422573061,1779109838000,-233.93080451,0.00014904,2]
[422573055,1779109838000,-7697.13896977,0.000149,2]
[422573048,1779109838000,-1735.16303817,0.000149,2]
[422573054,1779109838000,-233.93080452,0.000149,2]
[422573051,1779109838000,-107224.72435119,0.000149,2]
[422573050,1779109838000,-1002.81482506,0.000149,2]
[422573047,1779109838000,-320.37004753,0.00014871,2]
[422573049,1779109838000,-916.32374759,0.000149,2]
[422573046,1779109838000,-400.76800007,0.00014871,2]
[422573045,1779109838000,-247.11324935,0.00013388,2]
[422573044,1779109838000,-508.40358673,0.00014871,2]
[422573073,1779109838000,-150.0,0.00014963,2]
[422573052,1779109838000,-2600.0,0.000149,5]
[422573063,1779109838000,-233.93080451,0.00014907,2]
[422573081,1779109838000,-150.0,0.00014986,2]
[422573068,1779109838000,-178.513769,0.00014921,2]
[422573113,1779109838000,-500.0,0.00014999,2]
[422573111,1779109838000,-500.0,0.00014999,2]
[422573109,1779109838000,-500.0,0.00014999,2]
[422573101,1779109838000,-500.0,0.00014999,2]
[422573099,1779109838000,-500.0,0.00014999,2]
[422573071,1779109838000,-150.0,0.00014939,2]
[422573103,1779109838000,-500.0,0.00014999,2]
[422573107,1779109838000,-500.0,0.00014999,2]
[422573094,1779109838000,-537.10584976,0.0001499,2]
[422573096,1779109838000,-537.10584976,0.0001499,2]
[422573105,1779109838000,-500.0,0.00014999,2]
[422573088,1779109838000,-150.0,0.00014986,2]
[422573090,1779109838000,-164.93102534,0.00014986,2]
[422573086,1779109838000,-150.0,0.00014986,2]
[422573083,1779109838000,-150.00000003,0.00014986,2]
[422573084,1779109838000,-234.84158936,0.00014986,2]
[422573079,1779109838000,-150.0,0.00014986,2]
[422573077,1779109838000,-150.0,0.00014986,2]
[422573075,1779109838000,-278.83771142,0.00014986,2]
[422573066,1779109838000,-150.0,0.00014916,2]
[422573092,1779109838000,-537.10584976,0.0001499,2]
[422573134,1779109839000,-300.0,0.00014999,2]
[422573122,1779109839000,-500.0,0.00014999,2]
[422573123,1779109839000,-500.0,0.00014999,2]
[422573118,1779109839000,-500.0,0.00014999,2]
[422573121,1779109839000,-500.0,0.00014999,2]
[422573115,1779109839000,-500.0,0.00014999,2]
[422573120,1779109839000,-500.0,0.00014999,2]
[422573116,1779109839000,-500.0,0.00014999,2]
[422573119,1779109839000,-500.0,0.00014999,2]
[422573124,1779109839000,-500.0,0.00014999,2]
[422573117,1779109839000,-500.0,0.00014999,2]
[422573126,1779109839000,-500.0,0.00014999,2]
[422573129,1779109839000,-500.0,0.00014999,2]
[422573128,1779109839000,-500.0,0.00014999,2]
[422573125,1779109839000,-500.0,0.00014999,2]
[422573127,1779109839000,-500.0,0.00014999,2]
[422573141,1779109839000,-3374.24446509,0.00015,2]
[422573135,1779109839000,-666.0,0.00014999,2]
[422573132,1779109839000,-200.16128818,0.00014999,2]
[422573130,1779109839000,-500.0,0.00014999,2]
[422573131,1779109839000,-500.0,0.00014999,2]
[422573138,1779109839000,-14347347.30824142,0.00015,2]
[422573137,1779109839000,-666.0,0.00014999,2]
[422573136,1779109839000,-300.0,0.00014999,2]
[422573139,1779109839000,-807.14,0.00015,2]
[422573140,1779109839000,-657325.96840756,0.00015,2]
[422573133,1779109839000,-300.0,0.00014999,2]
[422573145,1779109840000,-12955.40241671,0.00015,2]
[422573147,1779109841000,-1226.10499662,0.00015,2]
[422573146,1779109841000,-1229.54163433,0.00014886,2]
[422573150,1779109841000,-4074.58400194,0.00015,2]
[422573149,1779109841000,-6746.22981931,0.00015,2]
[422573148,1779109841000,-890.07403046,0.00015,2]
[422573161,1779109843000,-10777.52310133,0.00015,2]
[422573160,1779109843000,-2446.2324017,0.00015,2]
[422573195,1779109846000,-511.0,0.000149,2]
[422573204,1779109947000,189.32,0.00015,120]
[422573205,1779110087000,-157.13,0.00010914,2]
[422573208,1779110221000,-500.0,0.00027563,120]
[422573207,1779110221000,-401.7418484,0.00027563,120]
[422573216,1779110222000,-500.0,0.00027999,120]
[422573215,1779110222000,-500.0,0.00027999,120]
[422573213,1779110222000,-500.0,0.00027999,120]
[422573218,1779110222000,-500.0,0.00027999,120]
[422573212,1779110222000,-205.0,0.0002799,120]
[422573211,1779110222000,-150.0,0.0002799,120]
[422573209,1779110222000,-500.0,0.00027563,120]
[422573214,1779110222000,-500.0,0.00027999,120]
[422573217,1779110222000,-500.0,0.00027999,120]
[422573210,1779110222000,-284.0,0.00027788,120]
[422573221,1779110222000,-500.0,0.00027999,120]
[422573228,1779110222000,-580.70539431,0.00027999,120]
[422573229,1779110222000,-4989878.55275729,0.00028,120]
[422573227,1779110222000,-500.0,0.00027999,120]
[422573226,1779110222000,-500.0,0.00027999,120]
[422573219,1779110222000,-500.0,0.00027999,120]
[422573225,1779110222000,-500.0,0.00027999,120]
[422573223,1779110222000,-500.0,0.00027999,120]
[422573222,1779110222000,-500.0,0.00027999,120]
[422573220,1779110222000,-500.0,0.00027999,120]
[422573224,1779110222000,-500.0,0.00027999,120]
[422573230,1779110229000,-3128442.09264552,0.00028,120]
[422573231,1779110229000,-160.0,0.00028,120]
[422573234,1779110229000,-150.0,0.00029,120]
[422573232,1779110229000,-2000.0,0.00028323,120]
[422573233,1779110229000,-180.0,0.00029,120]
[422573235,1779110229000,-181.0,0.00029,120]
[422573236,1779110401000,1948.99741466,0.00030136,120]
[422573237,1779110476000,-157.13,0.0001157,2]
[422573240,1779110801000,-41.98773293,0.00012881,2]
[422573239,1779110801000,-157.13,0.00012225,2]
[422573246,1779110880000,154.65,7.707e-05,2]
[422573245,1779110880000,23.09041462,7.242e-05,2]
[422573244,1779110880000,131.55958538,7.242e-05,2]
[422573243,1779110880000,83.55929073,6.777e-05,2]
[422573242,1779110880000,71.09070927,6.777e-05,2]
[422573247,1779110881000,154.65,8.172e-05,2]
[422573248,1779110881000,154.65,8.638e-05,2]
[422573250,1779110881000,154.65,9.568e-05,2]
[422573249,1779110881000,154.65,9.103e-05,2]
[422573252,1779110882000,154.65,0.00010498,2]
[422573251,1779110882000,154.65,0.00010033,2]
[422573253,1779110887000,546.0,0.000301,120]
[422573254,1779110940000,1000.0,0.00030135,120]
[422573282,1779111031000,-150.0,0.00013488,2]
[422573279,1779111031000,-300.0,0.00013487,2]
[422573276,1779111031000,-217.97857642,0.00013389,2]
[422573277,1779111031000,-124.88841414,0.0001339,2]
[422573275,1779111031000,-258.87161287,0.00013389,2]
[422573273,1779111031000,-316.14981071,0.00013389,2]
[422573278,1779111031000,-4094.51158586,0.0001339,2]
[422573274,1779111031000,-407.0,0.00013389,2]
[422573290,1779111031000,-150.0,0.00013576,2]
[422573272,1779111031000,-154.65,0.00013288,2]
[422573270,1779111031000,-457.24022354,0.00013261,2]
[422573268,1779111031000,-1192.90985921,0.00013258,2]
[422573266,1779111031000,-407.24,0.00013235,2]
[422573267,1779111031000,-105.34014079,0.00013258,2]
[422573265,1779111031000,-101.80771329,0.00012823,2]
[422573264,1779111031000,-52.84228671,0.00012823,2]
[422573263,1779111031000,-154.65,0.00012358,2]
[422573260,1779111031000,-154.65,0.00010963,2]
[422573261,1779111031000,-154.65,0.00011428,2]
[422573262,1779111031000,-154.65,0.00011893,2]
[422573271,1779111031000,-1178.03605581,0.00013261,2]
[422573285,1779111031000,-150.0,0.00013488,2]
[422573269,1779111031000,-364.72372065,0.00013261,2]
[422573284,1779111031000,-150.0,0.00013488,2]
[422573281,1779111031000,-150.0,0.00013488,2]
[422573305,1779111031000,-150.0,0.00013752,2]
[422573303,1779111031000,-150.0,0.00013737,2]
[422573304,1779111031000,-248.32,0.00013744,2]
[422573297,1779111031000,-178.83,0.00013699,2]
[422573298,1779111031000,-894.2,0.00013699,2]
[422573291,1779111031000,-150.0,0.0001362,2]
[422573294,1779111031000,-250.0,0.00013672,2]
[422573296,1779111031000,-214.6,0.00013699,2]
[422573293,1779111031000,-150.0,0.00013664,2]
[422573295,1779111031000,-257.52,0.00013699,2]
[422573299,1779111031000,-166.66,0.00013699,2]
[422573301,1779111031000,-150.0,0.00013708,2]
[422573300,1779111031000,-150.0,0.00013702,2]
[422573292,1779111031000,-541.62,0.00013622,2]
[422573288,1779111031000,-150.0,0.00013532,2]
[422573286,1779111031000,-150.0,0.00013488,2]
[422573289,1779111031000,-407.24,0.00013566,2]
[422573287,1779111031000,-150.0,0.00013488,2]
[422573283,1779111031000,-151.33807361,0.00013488,2]
[422573302,1779111031000,-150.0,0.00013737,2]
[422573280,1779111031000,-150.0,0.00013488,2]
[422573344,1779111032000,-150.0,0.00014237,2]
[422573343,1779111032000,-150.0,0.00014237,2]
[422573351,1779111032000,-166.66,0.00014384,2]
[422573340,1779111032000,-150.0,0.00014237,2]
[422573337,1779111032000,-175.3435528,0.00014169,2]
[422573333,1779111032000,-1032.06057703,0.00014169,2]